fUSD/lending_fUSD_20240129
["ID","MTS","AMOUNT","RATE_DAILY","PERIOD"]
[312990338,1706567462254,-180.79755131,0.00052054,31]
[312990339,1706567462264,-273508.48020173,0.00053,120]
[312990340,1706567462273,-600.0,0.00053,30]
[312990341,1706567462283,-4611.15060252,0.00053,30]
[312990342,1706567462294,-330.4429,0.00053,60]
[312990343,1706567462304,-67874.23494847,0.00053,30]
[312990344,1706567462315,-90698.37505131,0.00053,30]
[312990345,1706567462406,-4089.7595969,0.00053,30]
[312990346,1706567462513,-1095.2617459,0.00053,30]
[312990367,1706568026342,1000.0,0.000313,120]
[312990401,1706568631801,-550.0,0.00025,3]
[312990402,1706568631812,-600.0,0.00027,3]
[312990403,1706568631822,-472.5176,0.000284,2]
[312990404,1706568631832,-150.0,0.00028499,2]
[312990407,1706568632030,-150.0,0.00028499,2]
[312990408,1706568632040,-2445.0,0.000285,2]
[312990409,1706568632049,-2471.0,0.000285,2]
[312990410,1706568632058,-312.27,0.00028717,2]
[312990411,1706568632069,-650.0,0.00029,3]
[312990412,1706568632078,-4961.49630549,0.0003,4]
[312990413,1706568632087,-155.0,0.0003031,2]
[312990414,1706568632097,-623.08608683,0.00030311,2]
[312990415,1706568632106,-358.58,0.00030454,2]
[312990416,1706568632115,-14595.05278867,0.00030846,2]
[312990417,1706568632131,-159607.55474026,0.00030846,2]
[312990418,1706568632140,-24593.74,0.00030847,2]
[312990419,1706568632149,-3424.0,0.00030847,2]
[312990420,1706568632158,-821.65,0.00030976,3]
[312990421,1706568632168,-312.27,0.0003098,2]
[312990422,1706568632177,-330.28,0.00031097,2]
[312990423,1706568632186,-1322.6,0.00031097,2]
[312990424,1706568632195,-499.99,0.00031097,2]
[312990425,1706568632204,-202.45,0.00031137,2]
[312990426,1706568632213,-1265.20740857,0.000313,9]
[312990427,1706568632222,-500.0,0.000313,2]
[312990428,1706568632231,-197.39585201,0.00031374,2]
[312990429,1706568632240,-457.58376215,0.00031374,2]
[312990430,1706568632249,-501.45305311,0.00031374,2]
[312990431,1706568632259,-250.0,0.00031383,2]
[312990432,1706568632268,-220.30751523,0.00031463,2]
[312990433,1706568632277,-651.35,0.00031467,2]
[312990434,1706568632287,-4199.06019249,0.0003147,2]
[312990435,1706568632297,-512015.08678463,0.00031473,2]
[312990436,1706568632308,-372.04136223,0.00031473,2]
[312990437,1706568633872,-284978.40735384,0.00031473,2]
[312990438,1706568633885,-625923.76106357,0.00031473,2]
[312990439,1706568633895,-501757.8964,0.00031474,2]
[312990440,1706568633904,-251.7004,0.00031474,2]
[312990441,1706568633913,-2411.3271,0.00031474,2]
[312990442,1706568633923,-491.00844039,0.00031474,5]
[312990443,1706568633933,-1611.20312233,0.00031564,2]
[312990444,1706568633942,-279.88577382,0.00031574,4]
[312990445,1706568633951,-144500.1994934,0.00031574,2]
[312990446,1706568633982,-2657.13168263,0.00031574,2]
[312990447,1706568633994,-1942.16,0.00031574,2]
[312990489,1706568637842,-531907.28447584,0.00031574,2]
[312990490,1706568637851,-150.0,0.00031681,2]
[312990491,1706568637860,-229.4,0.00031686,2]
[312990492,1706568637870,-57735.1152193,0.000318,3]
[312990493,1706568637880,-186.53,0.00032877,2]
[312990494,1706568637889,-250.0,0.00032885,2]
[312990495,1706568637898,-13328.15,0.00032917,2]
[312990496,1706568637907,-500.0,0.00032999,2]
[312990497,1706568637916,-161.41,0.00033056,2]
[312990498,1706568637929,-1000.0,0.00033088,2]
[312990499,1706568637939,-1321.16,0.00033127,2]
[312990500,1706568637948,-157.15,0.00033167,2]
[312990501,1706568637958,-312.27,0.00033244,2]
[312990502,1706568637967,-229.4,0.0003333,2]
[312990503,1706568637977,-165.74,0.00033357,2]
[312990504,1706568637986,-157.15,0.00033383,2]
[312990505,1706568637996,-611.26542696,0.00033585,7]
[312990506,1706568638006,-713.06722712,0.00033585,7]
[312990507,1706568638015,-342.04978163,0.00033585,7]
[312990508,1706568638025,-157.15,0.00033599,2]
[312990509,1706568638035,-157.15,0.00033815,2]
[312990510,1706568638085,-489.8598969,0.00034,4]
[312990511,1706568638095,-635.999751,0.00034,4]
[312990512,1706568638105,-157.15,0.00034031,2]
[312990513,1706568638114,-157.15,0.00034247,2]
[312990514,1706568638123,-180.0,0.00034251,2]
[312990515,1706568638133,-161.41,0.00034279,2]
[312990516,1706568638144,-225.0,0.00034287,2]
[312990517,1706568638153,-157.15,0.00034463,2]
[312990518,1706568638162,-491.00844034,0.00034535,7]
[312990519,1706568638171,-157.15,0.00034679,2]
[312990520,1706568638181,-2620.8068,0.00034684,2]
[312990521,1706568638190,-473.8529,0.00034684,2]
[312990522,1706568638200,-715.1441,0.00034684,2]
[312990524,1706568638210,-160.37335377,0.00034695,7]
[312990525,1706568638220,-157.66311152,0.00034695,2]
[312990526,1706568638230,-5000.0,0.00034795,3]
[312990527,1706568638239,-353.61615197,0.000348,24]
[312990528,1706568638249,-220.30751523,0.00034887,2]
[312990529,1706568638259,-157.15,0.00034895,2]
[312990530,1706568638268,-150.0,0.00034896,2]
[312990531,1706568638278,-150.0,0.00034896,2]
[312990532,1706568638287,-39338.543,0.00034897,2]
[312990533,1706568638297,-100000.0,0.00034897,2]
[312990534,1706568638310,-245000.0,0.00034897,2]
[312990535,1706568638320,-501.42026133,0.000349,2]
[312990536,1706568638330,-229.4,0.00034973,2]
[312990537,1706568638339,-212.00544975,0.00035,4]
[312990538,1706568638349,-5000.0,0.00035,7]
[312990539,1706568638358,-150.0,0.00035,10]
[312990540,1706568638367,-158.4893079,0.00035,2]
[312990541,1706568638377,-10911.55014421,0.00035,2]
[312990542,1706568638386,-195.38876438,0.00035,2]
[312990543,1706568638395,-500.0,0.0003531,2]
[312990545,1706568638405,-1000.0,0.0003531,2]
[312990548,1706568638415,-161.41,0.00035502,2]
[312990549,1706568638427,-312.27,0.00035508,2]
[312990551,1706568638437,-13076.58597931,0.00036082,4]
[312990552,1706568638446,-412.75724785,0.00036082,2]
[312990553,1706568638455,-479.76835715,0.00036082,2]
[312990554,1706568638465,-19048.47700548,0.00036083,4]
[312990555,1706568638475,-153.26,0.000361,3]
[312990556,1706568638484,-518.01,0.000361,3]
[312990557,1706568638493,-518.01,0.000361,3]
[312990558,1706568638504,-518.01,0.000361,3]
[312990559,1706568638514,-518.01,0.000361,3]
[312990560,1706568638523,-518.01,0.000361,3]
[312990561,1706568638533,-518.01,0.000361,3]
[312990562,1706568638542,-518.01,0.000361,3]
[312990563,1706568638552,-518.01,0.000361,3]
[312990564,1706568638562,-518.01,0.000361,3]
[312990565,1706568638573,-518.01,0.000361,3]
[312990566,1706568638584,-518.01,0.000361,3]
[312990567,1706568638593,-518.01,0.000361,3]
[312990568,1706568638604,-518.01,0.000361,3]
[312990569,1706568638615,-518.01,0.000361,3]
[312990570,1706568638625,-518.01,0.000361,3]
[312990571,1706568638635,-518.01,0.000361,3]
[312990572,1706568638649,-518.01,0.000361,3]
[312990573,1706568638659,-518.01,0.000361,3]
[312990574,1706568638669,-518.01,0.000361,3]
[312990575,1706568638679,-518.01,0.000361,3]
[312990576,1706568638691,-153.92,0.00036277,2]
[312990577,1706568638702,-1044.41368588,0.00036489,9]
[312990578,1706568638713,-229.4,0.00036617,2]
[312990579,1706568638723,-161.41,0.00036725,2]
[312990580,1706568638734,-355.61932272,0.00037,4]
[312990581,1706568638743,-1000.0,0.00037224,2]
[312990582,1706568638753,-491.00844034,0.00037596,8]
[312990583,1706568638763,-312.27,0.00037772,2]
[312990584,1706568638772,-150.0,0.00037899,2]
[312990585,1706568638781,-150.0,0.00037899,2]
[312990586,1706568638790,-610838.6203582,0.000379,2]
[312990587,1706568638804,-38058.6815508,0.000379,2]
[312990588,1706568638815,-161.41,0.00037948,2]
[312990589,1706568638825,-157.66311146,0.00037998,2]
[312990590,1706568638836,-1044.41368588,0.00038081,11]
[312990591,1706568638847,-229.4,0.00038261,2]
[312990592,1706568638856,-500.0,0.000384,2]
[312990593,1706568638867,-4495.03986899,0.000385,7]
[312990594,1706568638878,-7333.67276664,0.000388,2]
[312990595,1706568638887,-7333.67276664,0.000388,2]
[312990596,1706568638896,-7333.67276664,0.000388,2]
[312990597,1706568638906,-7333.67276664,0.000388,2]
[312990598,1706568638915,-282.60808243,0.0003898,2]
[312990599,1706568638924,-501.42026129,0.00038981,2]
[312990600,1706568638933,-978.30213314,0.00039,4]
[312990601,1706568638943,-1431.73512433,0.00039,2]
[312990602,1706568638952,-621.60218478,0.00039,4]
[312990603,1706568638962,-353.61615197,0.000392,30]
[312990604,1706568638971,-1044.41368588,0.00039673,13]
[312990605,1706568638980,-150.1,0.000397,2]
[312990606,1706568638990,-350.00006257,0.000399,4]
[312990607,1706568638999,-229.4,0.00039905,2]
[312990608,1706568639008,-1086.74219428,0.0004,4]
[312990609,1706568639018,-2678.17811978,0.0004,4]
[312990610,1706568639027,-155.0,0.0004,2]
[312990611,1706568639036,-155.00208604,0.0004,4]
[312990612,1706568639046,-174.34371085,0.0004,4]
[312990613,1706568639055,-54264.43228568,0.0004,4]
[312990614,1706568639065,-22076.99674252,0.0004,4]
[312990615,1706568639075,-713.30733836,0.0004,30]
[312990616,1706568639084,-2274.86979912,0.0004,4]
[312990617,1706568639094,-312.27,0.00040036,2]
[312990618,1706568639104,-8514.42706973,0.00040373,19]
[312990619,1706568639113,-16165.89942789,0.00040373,19]
[312990620,1706568639124,-808.29497139,0.00040373,2]
[312990621,1706568639134,-848.70971997,0.00040373,2]
[312990622,1706568639144,-491.00844034,0.00040657,10]
[312990623,1706568639154,-153.26,0.000407,4]
[312990624,1706568639164,-153.26,0.000407,4]
[312990625,1706568639174,-518.01,0.000407,4]
[312990626,1706568639183,-518.01,0.000407,4]
[312990627,1706568639193,-518.01,0.000407,4]
[312990628,1706568639202,-518.01,0.000407,4]
[312990629,1706568639212,-518.01,0.000407,4]
[312990630,1706568639221,-518.01,0.000407,4]
[312990631,1706568639233,-518.01,0.000407,4]
[312990632,1706568639243,-518.01,0.000407,4]
[312990633,1706568639252,-518.01,0.000407,4]
[312990634,1706568639264,-518.01,0.000407,4]
[312990635,1706568639273,-518.01,0.000407,4]
[312990636,1706568639282,-518.01,0.000407,4]
[312990637,1706568639292,-518.01,0.000407,4]
[312990638,1706568639303,-518.01,0.000407,4]
[312990639,1706568639323,-518.01,0.000407,4]
[312990640,1706568639334,-518.01,0.000407,4]
[312990641,1706568639343,-518.01,0.000407,4]
[312990642,1706568639353,-518.01,0.000407,4]
[312990643,1706568639363,-518.01,0.000407,4]
[312990644,1706568639372,-518.01,0.000407,4]
[312990645,1706568639382,-959.78435384,0.00040946,13]
[312990646,1706568639391,-3441.72254948,0.00041,4]
[312990647,1706568639401,-150.0,0.00041096,2]
[312990648,1706568639412,-1044.41368588,0.00041265,15]
[312990649,1706568639423,-157.66311146,0.000413,11]
[312990650,1706568639433,-1000.0,0.0004136,2]
[312990651,1706568639442,-229.60394686,0.00041522,4]
[312990652,1706568639451,-1583.24343112,0.00041698,10]
[312990653,1706568639462,-200.0,0.00041698,2]
[312990654,1706568639471,-176.03482943,0.00041698,4]
[312990655,1706568639482,-1553.52914273,0.00041698,3]
[312990656,1706568639492,-684.951712,0.000418,37]
[312990657,1706568639501,-457.58376213,0.00041887,2]
[312990658,1706568639513,-25612.0371,0.00041945,7]
[312990659,1706568639522,-384.82722047,0.00041945,2]
[312990660,1706568639532,-1741.40993,0.00041945,30]
[312990661,1706568639541,-306.682723,0.00041945,30]
[312990662,1706568639550,-474.07011527,0.00042,4]
[312990663,1706568639559,-200.0,0.00042,2]
[312990664,1706568639569,-150.0,0.00042177,2]
[312990665,1706568639579,-312.27,0.000423,2]
[312990666,1706568639589,-1000.0,0.000425,2]
[312990667,1706568639598,-651.35,0.000427,2]
[312990668,1706568639608,-1044.41368588,0.00042857,17]
[312990669,1706568639617,-250.0,0.00043198,2]
[312990670,1706568639627,-554.107,0.00043198,2]
[312990671,1706568639636,-157.0,0.00043198,2]
[312990672,1706568639645,-250.0,0.00043198,2]
[312990673,1706568639655,-198.0,0.00043198,2]
[312990674,1706568639664,-158.113,0.00043198,2]
[312990675,1706568639673,-214.219,0.00043198,2]
[312990676,1706568639682,-179.0,0.00043198,2]
[312990677,1706568639693,-178.981,0.00043198,2]
[312990678,1706568639938,-163.196,0.00043198,2]
[312990679,1706568639947,-239.054,0.00043198,2]
[312990680,1706568639958,-207.6,0.00043198,2]
[312990681,1706568639967,-151.015,0.00043198,2]
[312990682,1706568639977,-150.71,0.00043198,2]
[312990683,1706568639988,-150.0,0.00043259,2]
[312990684,1706568639998,-501.42026129,0.00043266,5]
[312990685,1706568640007,-202.45,0.00043592,2]
[312990686,1706568640019,-353.61615197,0.000436,37]
[312990687,1706568640029,-460.0,0.0004369,2]
[312990688,1706568640038,-336.0,0.0004369,2]
[312990689,1706568640047,-491.00844034,0.00043717,11]
[312990690,1706568640057,-8000.0,0.000438,2]
[312990691,1706568640070,-416.01,0.00043836,15]
[312990692,1706568640080,-525.66183254,0.00043836,35]
[312990693,1706568640090,-203.29050131,0.000441,2]
[312990694,1706568640099,-150.0,0.0004434,2]
[312990695,1706568640109,-1321.16,0.0004436,120]
[312990696,1706568640119,-1044.41368588,0.00044449,19]
[312990697,1706568640129,-312.27,0.00044564,2]
[312990698,1706568640138,-157.66311146,0.00044603,24]
[312990699,1706568640148,-262.60988048,0.0004498,3]
[312990700,1706568640158,-183.0,0.0004499,2]
[312990701,1706568640167,-253.05044787,0.00045,4]
[312990702,1706568640176,-155.0,0.00045,2]
[312990703,1706568640186,-150.0,0.00045,2]
[312990704,1706568640195,-2874.0,0.00045,2]
[312990705,1706568640205,-450.0,0.0004502,5]
[312990706,1706568640214,-679.0,0.0004519,2]
[312990708,1706568640223,-4008.24,0.000452,2]
[312990710,1706568640233,-153.26,0.000452,5]
[312990711,1706568640242,-153.26,0.000452,5]
[312990712,1706568640251,-518.01,0.000452,5]
[312990713,1706568640261,-518.01,0.000452,5]
[312990714,1706568640270,-518.01,0.000452,5]
[312990716,1706568640280,-518.01,0.000452,5]
[312990718,1706568640289,-518.01,0.000452,5]
[312990719,1706568640299,-518.01,0.000452,5]
[312990720,1706568640309,-518.01,0.000452,5]
[312990721,1706568640319,-518.01,0.000452,5]
[312990722,1706568640329,-518.01,0.000452,5]
[312990723,1706568640338,-518.01,0.000452,5]
[312990724,1706568640348,-518.01,0.000452,5]
[312990725,1706568640357,-518.01,0.000452,5]
[312990726,1706568640367,-518.01,0.000452,5]
[312990727,1706568640377,-518.01,0.000452,5]
[312990728,1706568640386,-518.01,0.000452,5]
[312990729,1706568640395,-518.01,0.000452,5]
[312990730,1706568640404,-518.01,0.000452,5]
[312990731,1706568640414,-518.01,0.000452,5]
[312990732,1706568640426,-518.01,0.000452,5]
[312990733,1706568640435,-518.01,0.000452,5]
[312990734,1706568640445,-150.0,0.00045422,2]
[312990735,1706568640454,-1000.0,0.00045496,2]
[312990736,1706568640463,-1044.41368588,0.00046041,21]
[312990737,1706568640474,-223.7,0.0004612,10]
[312990738,1706568640484,-186.42,0.0004612,10]
[312990739,1706568640493,-158.89,0.0004613,120]
[312990740,1706568640503,-150.0,0.00046198,2]
[312990741,1706568640513,-150.0,0.00046198,2]
[312990742,1706568640522,-150.0,0.00046198,2]
[312990743,1706568640531,-150.0,0.00046198,2]
[312990744,1706568640540,-150.0,0.00046198,2]
[312990745,1706568640549,-150.0,0.00046198,2]
[312990746,1706568640558,-150.0,0.00046198,2]
[312990747,1706568640568,-209.0,0.000465,10]
[312990748,1706568640577,-150.0,0.00046503,2]
[312990749,1706568640586,-187.5,0.00046575,120]
[312990750,1706568640596,-448.0,0.0004659,2]
[312990751,1706568640605,-500.0,0.000466,2]
[312990752,1706568640614,-491.00844034,0.00046778,12]
[312990753,1706568640624,-312.27,0.00046828,2]
[312990754,1706568640633,-1894.94133969,0.00047,2]
[312990755,1706568640643,-501.42026129,0.00047552,5]
[312990756,1706568640652,-416.01,0.00047572,15]
[312990757,1706568640661,-150.0,0.00047585,2]
[312990758,1706568640670,-1044.41368588,0.00047633,23]
[312990759,1706568640679,-157.66311146,0.00047905,36]
[312990760,1706568640689,-150.0,0.00047999,7]
[312990761,1706568640698,-150.0,0.00047999,7]
[312990762,1706568640707,-508.65388243,0.00048,4]
[312990763,1706568640716,-500000.0,0.00048,14]
[312990764,1706568640725,-32554.40178493,0.00048,14]
[312990765,1706568640747,-4408.95084371,0.00048,14]
[312990766,1706568640758,-408.36688407,0.00048,14]
[312990767,1706568640781,-863.64,0.00048,14]
[312990768,1706568640793,-381.18278025,0.00048,14]
[312990769,1706568640809,-2316.9,0.00048,14]
[312990770,1706568640822,-11591.01869265,0.00048,14]
[312990771,1706568641100,-859.38644713,0.0003888,2]
[312990772,1706568641110,-257.94326884,0.00048,14]
[312990773,1706568641211,-15166.91109983,0.00048,14]
[312990785,1706568642853,-1520.06349,0.00048,14]
[312990786,1706568643012,-277.95641251,0.00031473,2]
[312990787,1706568643121,-2831.96604454,0.00031473,2]
[312990951,1706568645925,-14113.77427899,0.00031473,2]
[312990952,1706568645936,-1605.98093766,0.00031473,2]
[312990953,1706568645984,-2010.76610554,0.00031473,2]
[312990954,1706568646043,-153362.16374969,0.00031473,2]
[312990955,1706568646053,-859.38644712,0.0003888,2]
[312990956,1706568646062,-155.35,0.0004699,10]
[312990957,1706568646072,-128087.44610769,0.00048,14]
[312990958,1706568646081,-353.61615197,0.00048,43]
[312990959,1706568646091,-150.0,0.00048666,2]
[312990960,1706568646101,-1000.0,0.000488,2]
[312990961,1706568646111,-5000.0,0.0004898,7]
[312990962,1706568646120,-6649.08695434,0.00049,30]
[312990963,1706568646130,-550.178373,0.00049,30]
[312990964,1706568646141,-500.0,0.0004904,30]
[312990965,1706568646150,-1445.0,0.0004906,2]
[312990966,1706568646160,-150.0,0.00049068,30]
[312990967,1706568646169,-150.0,0.00049068,30]
[312990968,1706568646179,-150.00000001,0.00049068,30]
[312990969,1706568646189,-150.0,0.00049068,30]
[312990970,1706568646198,-150.0,0.00049068,30]
[312990971,1706568646207,-150.0,0.00049068,30]
[312990972,1706568646217,-150.0,0.00049068,30]
[312990973,1706568646226,-150.0,0.00049068,30]
[312990974,1706568646235,-150.0,0.00049068,30]
[312990975,1706568646244,-150.0,0.00049068,30]
[312990976,1706568646254,-150.0,0.00049068,30]
[312990977,1706568646263,-150.0,0.00049068,30]
[312990978,1706568646273,-150.0,0.00049068,30]
[312990979,1706568646282,-312.27,0.00049092,2]
[312990980,1706568646291,-150.0,0.00049151,30]
[312990981,1706568646301,-150.0,0.00049198,2]
[312990982,1706568646310,-150.0,0.00049198,2]
[312990983,1706568646320,-150.0,0.00049198,2]
[312990984,1706568646330,-150.0,0.00049198,2]
[312990985,1706568646339,-150.0,0.00049198,2]
[312990986,1706568646349,-1044.41368588,0.00049225,25]
[312990987,1706568646358,-150.0,0.00049233,30]
[312990988,1706568646367,-150.0,0.00049286,30]
[312990989,1706568646376,-187.5,0.00049315,120]
[312990990,1706568646385,-250.0,0.00049315,2]
[312990991,1706568646395,-500.0,0.00049315,12]
[312990992,1706568646405,-750.0,0.00049315,22]
[312990993,1706568646414,-1000.0,0.00049315,32]
[312990994,1706568646426,-1250.0,0.00049315,42]
[312990995,1706568646435,-1500.0,0.00049315,52]
[312990996,1706568646444,-1750.0,0.00049315,62]
[312990997,1706568646453,-2000.0,0.00049315,72]
[312990998,1706568646462,-2250.0,0.00049315,82]
[312990999,1706568646472,-264.85355417,0.00049315,92]
[312991000,1706568646481,-200.0,0.00049315,60]
[312991001,1706568646491,-150.0,0.00049316,30]
[312991002,1706568646502,-150.0,0.00049389,30]
[312991003,1706568646512,-150.0,0.00049398,30]
[312991004,1706568646521,-150.0,0.00049431,30]
[312991005,1706568646530,-150.0,0.00049481,30]
[312991006,1706568646540,-150.0,0.00049504,30]
[312991007,1706568646548,-150.0,0.00049564,30]
[312991008,1706568646558,-312.20067157,0.00049588,90]
[312991009,1706568646567,-150.0,0.00049613,30]
[312991010,1706568646577,-872.38418248,0.00049632,120]
[312991011,1706568646590,-127.61581752,0.00049632,120]
[312991012,1706568646599,-150.0,0.00049646,30]
[312991013,1706568646608,-150.0,0.00049674,30]
[312991014,1706568646617,-153.26,0.000497,6]
[312991015,1706568646627,-153.26,0.000497,6]
[312991016,1706568646636,-297.0055592,0.000497,6]
[312991017,1706568646650,-221.0044408,0.000497,6]
[312991018,1706568646658,-358.35803687,0.000497,6]
[312991019,1706568646926,-159.65196313,0.000497,6]
[312991020,1706568646936,-518.01,0.000497,6]
[312991021,1706568646946,-518.01,0.000497,6]
[312991022,1706568646955,-518.01,0.000497,6]
[312991023,1706568646964,-518.01,0.000497,6]
[312991024,1706568646973,-518.01,0.000497,6]
[312991025,1706568646983,-518.01,0.000497,6]
[312991026,1706568646992,-518.01,0.000497,6]
[312991027,1706568647001,-518.01,0.000497,6]
[312991028,1706568647011,-518.01,0.000497,6]
[312991029,1706568647020,-518.01,0.000497,6]
[312991030,1706568647029,-518.01,0.000497,6]
[312991031,1706568647038,-518.01,0.000497,6]
[312991032,1706568647047,-518.01,0.000497,6]
[312991033,1706568647056,-518.01,0.000497,6]
[312991034,1706568647066,-518.01,0.000497,6]
[312991035,1706568647075,-518.01,0.000497,6]
[312991036,1706568647084,-518.01,0.000497,6]
[312991037,1706568647094,-518.01,0.000497,6]
[312991038,1706568647103,-150.0,0.00049709,30]
[312991039,1706568647114,-150.0,0.00049722,30]
[312991040,1706568647123,-150.0,0.00049729,30]
[312991041,1706568647133,-150.0,0.00049748,2]
[312991042,1706568647142,-150.0,0.0004975,30]
[312991043,1706568647152,-150.0,0.00049795,30]
[312991044,1706568647162,-150.0,0.00049811,30]
[312991045,1706568647171,-491.00844034,0.00049839,14]
[312991046,1706568647181,-150.0,0.00049847,30]
[312991047,1706568647190,-209.0,0.00049875,16]
[312991048,1706568647199,-150.0,0.00049894,30]
[312991049,1706568647208,-150.0,0.0004994,30]
[312991050,1706568647217,-150.0,0.00049977,30]
[312991051,1706568647228,-469.1345817,0.0004998,5]
[312991052,1706568647237,-500.0,0.00049999,120]
[312991053,1706568647246,-500.0,0.00049999,120]
[312991054,1706568647255,-354.3910701,0.00049999,120]
[312991055,1706568647265,-500.0,0.00049999,120]
[312991056,1706568647274,-500.0,0.00049999,120]
[312991057,1706568647283,-500.0,0.00049999,120]
[312991058,1706568647292,-580.14216218,0.00049999,120]
[312991059,1706568647301,-500.0,0.00049999,120]
[312991060,1706568647310,-500.0,0.00049999,120]
[312991061,1706568647320,-500.0,0.00049999,120]
[312991062,1706568647329,-408.8420365,0.00049999,120]
[312991063,1706568647338,-500.0,0.00049999,120]
[312991064,1706568647347,-500.0,0.00049999,120]
[312991065,1706568647357,-500.0,0.00049999,120]
[312991066,1706568647366,-500.0,0.00049999,120]
[312991067,1706568647375,-500.0,0.00049999,120]
[312991068,1706568647384,-500.0,0.00049999,120]
[312991069,1706568647394,-500.0,0.00049999,120]
[312991070,1706568647403,-500.0,0.00049999,120]
[312991071,1706568647413,-500.0,0.00049999,120]
[312991072,1706568647423,-227.61034311,0.00049999,120]
[312991073,1706568647434,-500.0,0.00049999,120]
[312991074,1706568647443,-500.0,0.00049999,120]
[312991075,1706568647452,-500.0,0.00049999,120]
[312991076,1706568647463,-500.0,0.00049999,120]
[312991077,1706568647472,-500.0,0.00049999,120]
[312991078,1706568647482,-500.0,0.00049999,120]
[312991079,1706568647491,-500.0,0.00049999,120]
[312991080,1706568647500,-500.0,0.00049999,120]
[312991081,1706568647511,-500.0,0.00049999,120]
[312991082,1706568647521,-500.0,0.00049999,120]
[312991083,1706568647531,-500.0,0.00049999,120]
[312991084,1706568647540,-500.0,0.00049999,120]
[312991085,1706568647549,-500.0,0.00049999,120]
[312991086,1706568647559,-216.46543285,0.00049999,120]
[312991087,1706568647568,-500.0,0.00049999,120]
[312991088,1706568647749,-500.0,0.00049999,120]
[312991089,1706568647759,-500.0,0.00049999,120]
[312991090,1706568647768,-500.0,0.00049999,120]
[312991091,1706568647777,-500.0,0.00049999,120]
[312991092,1706568647786,-500.0,0.00049999,120]
[312991093,1706568647795,-500.0,0.00049999,120]
[312991094,1706568647805,-500.0,0.00049999,120]
[312991095,1706568647814,-500.0,0.00049999,120]
[312991096,1706568647823,-500.0,0.00049999,120]
[312991097,1706568647832,-500.0,0.00049999,120]
[312991098,1706568647841,-500.0,0.00049999,120]
[312991099,1706568647850,-199.12051513,0.00049999,120]
[312991100,1706568647860,-500.0,0.00049999,120]
[312991101,1706568647869,-500.0,0.00049999,120]
[312991102,1706568647878,-500.0,0.00049999,120]
[312991103,1706568647887,-500.0,0.00049999,120]
[312991104,1706568647896,-500.0,0.00049999,120]
[312991105,1706568647906,-500.0,0.00049999,120]
[312991106,1706568647915,-500.0,0.00049999,120]
[312991107,1706568647924,-500.0,0.00049999,120]
[312991108,1706568647932,-500.0,0.00049999,120]
[312991109,1706568647942,-500.0,0.00049999,120]
[312991110,1706568647951,-500.0,0.00049999,120]
[312991111,1706568647960,-172.35967324,0.00049999,120]
[312991112,1706568647970,-500.0,0.00049999,120]
[312991113,1706568647979,-500.0,0.00049999,120]
[312991114,1706568647988,-500.0,0.00049999,120]
[312991115,1706568647998,-500.0,0.00049999,120]
[312991116,1706568648007,-500.0,0.00049999,120]